fUSD/lending_fUSD_20250926
["ID","MTS","AMOUNT","RATE_DAILY","PERIOD"]
[387842320,1758916267896,-154.207694,0.00019999,2]
[387842321,1758916267906,-151.0,0.00019999,2]
[387842322,1758916267917,-151.0,0.00019999,2]
[387842323,1758916267927,-151.0,0.00019999,2]
[387842324,1758916267936,-151.0,0.00019999,2]
[387842325,1758916267946,-220.587001,0.00019999,2]
[387842326,1758916267955,-151.0,0.00019999,2]
[387842327,1758916267965,-151.0,0.00019999,2]
[387842328,1758916267974,-3394.967901,0.00019999,2]
[387842329,1758916267984,-1527.461807,0.00019999,2]
[387842330,1758916267993,-3394.967901,0.00019999,2]
[387842331,1758916268003,-151.0,0.00019999,2]
[387842332,1758916268013,-1527.461807,0.00019999,2]
[387842333,1758916268023,-590.841036,0.00019999,2]
[387842334,1758916268032,-570.627704,0.00019999,2]
[387842335,1758916268041,-3394.967901,0.00019999,2]
[387842336,1758916268051,-218.080647,0.00019999,2]
[387842337,1758916268061,-1527.461807,0.00019999,2]
[387842338,1758916268071,-590.841036,0.00019999,2]
[387842339,1758916268080,-570.627704,0.00019999,2]
[387842340,1758916268089,-3394.967902,0.00019999,2]
[387842341,1758916268099,-590.841036,0.00019999,2]
[387842342,1758916268108,-570.627704,0.00019999,2]
[387842343,1758916268118,-151.0,0.00019999,2]
[387842344,1758916268128,-151.0,0.00019999,2]
[387842345,1758916268137,-590.841036,0.00019999,2]
[387842346,1758916268147,-570.627713,0.00019999,2]
[387842347,1758916268157,-1527.461807,0.00019999,2]
[387842348,1758916268167,-151.0,0.00019999,2]
[387842349,1758916268177,-161.874441,0.00019999,2]
[387842350,1758916268186,-161.874441,0.00019999,2]
[387842351,1758916268196,-161.874441,0.00019999,2]
[387842352,1758916268205,-161.87444,0.00019999,2]
[387842353,1758916268215,-4082.617646,0.00019999,2]
[387842354,1758916268224,-4082.617646,0.00019999,2]
[387842355,1758916268234,-4082.617646,0.00019999,2]
[387842356,1758916268243,-4082.61764,0.00019999,2]
[387842357,1758916268252,-151.0,0.00019999,2]
[387842358,1758916268261,-1088.88561,0.00019999,2]
[387842359,1758916268270,-1088.88561,0.00019999,2]
[387842360,1758916268279,-156.58216,0.00019999,2]
[387842361,1758916268289,-1088.88561,0.00019999,2]
[387842362,1758916268298,-1088.8856047,0.00019999,2]
[387842363,1758916268307,-151.0,0.00019999,2]
[387842364,1758916268317,-151.0,0.00019999,2]
[387842365,1758916268326,-169.329125,0.00019999,2]
[387842366,1758916268335,-224.653923,0.00019999,2]
[387842367,1758916268345,-224.653923,0.00019999,2]
[387842368,1758916268354,-151.0,0.00019999,2]
[387842369,1758916268363,-224.653923,0.00019999,2]
[387842370,1758916268373,-151.0,0.00019999,2]
[387842371,1758916268383,-224.653924,0.00019999,2]
[387842372,1758916268392,-151.0,0.00019999,2]
[387842373,1758916268402,-153.693403,0.00019999,2]
[387842374,1758916268412,-151.0,0.00019999,2]
[387842375,1758916268423,-151.0,0.00019999,2]
[387842376,1758916268432,-151.0,0.00019999,2]
[387842377,1758916268442,-749.19547045,0.00019999,2]
[387842378,1758916268452,-500.0,0.0002,2]
[387842379,1758916268461,-500.0,0.0002,2]
[387842380,1758916268471,-500.0,0.0002,2]
[387842381,1758916268480,-500.0,0.0002,2]
[387842382,1758916268490,-499.99,0.0002,2]
[387842383,1758916268499,-500.0,0.0002,2]
[387842384,1758916268508,-500.0,0.0002,2]
[387842385,1758916268517,-4000.0,0.0002,4]
[387842386,1758916268527,-547459.18724222,0.0002,2]
[387842387,1758916268537,-383939.90750702,0.0002,2]
[387842388,1758916273486,-500.0,0.00019892,2]
[387842389,1758916273496,-197.45049206,0.00019892,2]
[387842390,1758916273505,-309.5378282,0.00019892,2]
[387842391,1758916273514,-179.6285341,0.00019892,2]
[387842392,1758916273524,-151.0,0.00019973,2]
[387842393,1758916273534,-151.0,0.00019973,2]
[387842394,1758916273543,-292.202601,0.00019973,2]
[387842395,1758916273553,-151.0,0.0001998,2]
[387842396,1758916273563,-292.202601,0.0001998,2]
[387842397,1758916273572,-151.0,0.0001998,2]
[387842398,1758916273582,-151.0,0.0001998,2]
[387842399,1758916273592,-151.0,0.0001998,2]
[387842400,1758916273601,-151.0,0.0001998,2]
[387842401,1758916273615,-292.202601,0.0001998,2]
[387842402,1758916273625,-292.202601,0.00019987,2]
[387842403,1758916273635,-155.596039,0.00019987,2]
[387842404,1758916273644,-151.0,0.00019987,2]
[387842405,1758916273654,-292.796437,0.00019987,2]
[387842406,1758916273663,-151.0,0.00019987,2]
[387842407,1758916273673,-292.202601,0.00019987,2]
[387842408,1758916273683,-151.0,0.00019988,2]
[387842409,1758916273693,-292.202601,0.00019988,2]
[387842410,1758916273703,-161.566065,0.00019988,2]
[387842411,1758916273712,-151.0,0.00019998,2]
[387842412,1758916273722,-151.0,0.00019999,2]
[387842413,1758916273730,-292.202601,0.00019999,2]
[387842414,1758916273739,-79663.24964911,0.0002,2]
[387842415,1758916276255,-250.0,0.00019973,2]
[387842420,1758916427913,166.12,0.00018362,2]
[387842423,1758916436337,-150.0,0.00018915,2]
[387842424,1758916436361,-100.0,0.00019214,2]
[387842425,1758916443271,-179.06707424,0.00019214,2]
[387842426,1758916448061,-67.93292576,0.00019214,2]
[387842427,1758916448087,-87.37775105,0.00019224,2]
[387842430,1758916537691,500.0,0.00030136,120]
[387842431,1758916537935,500.0,0.00030136,120]
[387842432,1758916538243,500.0,0.00030136,120]
[387842433,1758916545799,167.42,9.432e-05,2]
[387842434,1758916571541,503.95989305,0.00030136,120]
[387842439,1758916660103,184.734663,0.00018402,2]
[387842440,1758916660384,184.734663,0.00018402,2]
[387842441,1758916660581,-181.06366678,0.00018647,2]
[387842442,1758916660643,184.734663,0.00018401,2]
[387842443,1758916661019,184.734663,0.00018156,2]
[387842444,1758916661282,184.734663,0.00018156,2]
[387842445,1758916662417,184.734663,0.00017909,2]
[387842446,1758916662769,184.734663,0.00017909,2]
[387842447,1758916662987,184.734663,0.00017897,2]
[387842448,1758916663106,150.506317,0.00018401,2]
[387842449,1758916663165,184.734663,0.00017859,2]
[387842450,1758916663330,150.506317,0.00017909,2]
[387842451,1758916663358,-3.67099622,0.00018647,2]
[387842452,1758916663381,-150.506317,0.00018647,2]
[387842453,1758916663405,-92.82268678,0.00018649,2]
[387842454,1758916663458,184.734663,0.00017857,2]
[387842455,1758916663650,150.506317,0.00017859,2]
[387842456,1758916663752,184.734663,0.00017857,2]
[387842457,1758916664169,150.506317,0.00017856,2]
[387842458,1758916664252,184.734663,0.00017856,2]
[387842459,1758916664618,184.734663,0.00017852,2]
[387842460,1758916664792,184.734663,0.00017719,2]
[387842461,1758916665451,153.018509,0.00018156,2]
[387842462,1758916665477,-153.018509,0.00018647,2]
[387842463,1758916665501,-91.91197622,0.00018649,2]
[387842464,1758916665524,-5.06951478,0.00018649,2]
[387842465,1758916665730,153.018509,0.00017897,2]
[387842466,1758916665926,153.018509,0.00017857,2]
[387842469,1758916756503,500.0,0.00030136,120]
[387842473,1758916776263,500.0,0.00030136,120]
[387842474,1758916776505,500.0,0.00030136,120]
[387842475,1758916776804,500.0,0.00030136,120]
[387842476,1758916777081,500.0,0.00030136,120]
[387842477,1758916777327,500.0,0.00030136,120]
[387842478,1758916777614,500.0,0.00030136,120]
[387842479,1758916777853,500.0,0.00030136,120]
[387842484,1758916879063,500.0,0.00030136,120]
[387842485,1758916879552,500.0,0.00030136,120]
[387842486,1758916879785,432.0,0.00030136,120]
[387842487,1758916917922,500.0,0.00030136,120]
[387842488,1758916918111,500.0,0.00030136,120]
[387842489,1758916918345,500.0,0.00030136,120]
[387842490,1758916918629,500.0,0.00030136,120]
[387842491,1758916918891,500.0,0.00030136,120]
[387842492,1758916919349,500.0,0.00030136,120]
[387842493,1758916919576,500.0,0.00030136,120]
[387842494,1758916919788,500.0,0.00030136,120]
[387842495,1758916919990,500.0,0.00030136,120]
[387842496,1758916920162,500.0,0.00030136,120]
[387842497,1758916920305,500.0,0.00030136,120]
[387842498,1758916920751,500.0,0.00030136,120]
[387842499,1758916921053,500.0,0.00030136,120]
[387842500,1758916921288,500.0,0.00030136,120]
[387842501,1758916921496,500.0,0.00030136,120]
[387842502,1758916921702,500.0,0.00030136,120]
[387842503,1758916922190,500.0,0.00030136,120]
[387842504,1758916922417,500.0,0.00030136,120]
[387842505,1758916922746,500.0,0.00030136,120]
[387842506,1758916923056,500.0,0.00030136,120]
[387842507,1758916923277,500.0,0.00030136,120]
[387842508,1758916923413,500.0,0.00030136,120]
[387842509,1758916923922,505.3,0.00030136,120]
[387842512,1758916966601,500.0,0.00030136,120]
[387842513,1758916966934,500.0,0.00030136,120]
[387842514,1758916967013,500.0,0.00030136,120]
[387842515,1758916967379,500.0,0.00030136,120]
[387842516,1758916968423,219.73939945,0.00030136,120]
[387842518,1758917016840,500.0,0.00030136,120]
[387842519,1758917017120,500.0,0.00030136,120]
[387842520,1758917017629,500.0,0.00030136,120]
[387842521,1758917017827,500.0,0.00030136,120]
[387842522,1758917017982,500.0,0.00030136,120]
[387842523,1758917018171,500.0,0.00030136,120]
[387842524,1758917018425,500.0,0.00030136,120]
[387842526,1758917041366,500.0,0.00030136,120]
[387842527,1758917041607,500.0,0.00030136,120]
[387842528,1758917041911,500.0,0.00030136,120]
[387842529,1758917042102,500.0,0.00030136,120]
[387842530,1758917042333,500.0,0.00030136,120]
[387842531,1758917042627,500.0,0.00030136,120]
[387842532,1758917043059,500.0,0.00030136,120]
[387842533,1758917048932,500.0,0.00030136,120]
[387842534,1758917049220,500.0,0.00030136,120]
[387842535,1758917049361,500.0,0.00030136,120]
[387842536,1758917049666,500.0,0.00030136,120]
[387842537,1758917049974,628.97876171,0.00030136,120]
[387842541,1758917105748,150.0,0.00018,2]
[387842542,1758917108277,150.0,0.00018,2]
[387842543,1758917109134,150.0,0.00018,2]
[387842544,1758917116503,150.0,0.00018,2]
[387842545,1758917116556,150.0,0.00018,2]
[387842546,1758917129448,150.0,0.00018,2]
[387842547,1758917129482,150.0,0.00018,2]
[387842548,1758917132976,150.0,0.00018,2]
[387842549,1758917133103,150.0,0.00018,2]
[387842550,1758917184907,533.87024515,0.00030136,120]
[387842551,1758917211066,500.0,0.00030136,120]
[387842552,1758917211388,500.0,0.00030136,120]
[387842553,1758917211626,500.0,0.00030136,120]
[387842554,1758917211874,500.0,0.00030136,120]
[387842560,1758917344115,500.0,0.00030136,120]
[387842561,1758917344477,500.0,0.00030136,120]
[387842562,1758917345015,500.0,0.00030136,120]
[387842564,1758917381075,500.0,0.00030136,120]
[387842565,1758917381308,500.0,0.00030136,120]
[387842566,1758917381510,500.0,0.00030136,120]
[387842567,1758917381814,500.0,0.00030136,120]
[387842568,1758917382308,500.0,0.00030136,120]
[387842569,1758917382397,500.0,0.00030136,120]
[387842570,1758917382705,500.0,0.00030136,120]
[387842571,1758917382860,583.6349742,0.00030136,120]
[387842592,1758917432671,-380.12415017,0.00018654,2]
[387842597,1758917432708,-2624.26584983,0.00018654,2]
[387842599,1758917432718,-300.0,0.00018661,2]
[387842601,1758917432728,-193.0,0.00018668,2]
[387842603,1758917432738,-372.42,0.00018681,2]
[387842605,1758917432751,-300.0,0.00018684,2]
[387842606,1758917432760,-300.0,0.00018709,2]
[387842608,1758917432770,-300.0,0.00018709,2]
[387842610,1758917432780,-1200.0,0.00018709,2]
[387842612,1758917432789,-500.0,0.0001871,2]
[387842614,1758917432798,-500.0,0.0001871,2]
[387842616,1758917432808,-161.11524865,0.0001871,2]
[387842618,1758917432818,-500.0,0.0001871,2]
[387842620,1758917432827,-500.0,0.0001871,2]
[387842622,1758917432837,-500.0,0.0001871,2]
[387842624,1758917432847,-500.0,0.0001871,2]
[387842626,1758917432856,-500.0,0.0001871,2]
[387842628,1758917432865,-509.5842247,0.0001871,2]
[387842630,1758917432875,-500.0,0.0001871,2]
[387842632,1758917432884,-581.27006341,0.0001871,2]
[387842634,1758917432894,-276.66510828,0.0001871,2]
[387842635,1758917432903,-499.99999999,0.0001871,2]
[387842636,1758917432913,-1000.0,0.00018736,2]
[387842637,1758917432922,-9211.34798985,0.00018993,2]
[387842638,1758917432932,-201.93286099,0.00018993,2]
[387842639,1758917432944,-267.46074303,0.00018993,2]
[387842640,1758917432953,-7914.62227845,0.00019048,2]
[387842641,1758917432963,-1264.02096792,0.00019086,2]
[387842642,1758917432975,-346.82,0.00019135,2]
[387842643,1758917432985,-150.0,0.00019135,7]
[387842644,1758917432994,-186.09,0.00019135,2]
[387842646,1758917433005,-150.0,0.000192,2]
[387842648,1758917433016,-412.11,0.000192,2]
[387842650,1758917433025,-412.11,0.000192,2]
[387842652,1758917433035,-410.63,0.000192,2]
[387842654,1758917433045,-259.62224895,0.00019224,2]
[387842656,1758917433055,-347.0,0.00019249,2]
[387842658,1758917433065,-347.0,0.00019277,2]
[387842660,1758917433075,-322.6107,0.00019328,2]
[387842662,1758917433084,-200.0,0.00019328,2]
[387842664,1758917433094,-695.39793187,0.00019328,2]
[387842666,1758917433104,-160.0,0.00019328,2]
[387842667,1758917433113,-151.0,0.00019328,2]
[387842670,1758917433124,-151.0,0.00019328,2]
[387842672,1758917433134,-254.57889694,0.00019328,2]
[387842674,1758917433144,-151.0,0.00019328,2]
[387842676,1758917433154,-151.0,0.00019328,2]
[387842677,1758917433165,-151.0,0.00019328,2]
[387842679,1758917433175,-200.0,0.00019328,2]
[387842681,1758917433185,-151.0,0.00019328,2]
[387842683,1758917433194,-151.0,0.00019328,2]
[387842684,1758917433207,-151.0,0.00019328,2]
[387842685,1758917433217,-151.0,0.00019328,2]
[387842686,1758917433227,-151.0,0.00019328,2]
[387842687,1758917433237,-500.0,0.00019328,2]
[387842688,1758917433247,-151.0,0.00019328,2]
[387842689,1758917433257,-151.0,0.00019328,2]
[387842690,1758917433267,-151.0,0.00019328,2]
[387842691,1758917433277,-151.0,0.00019328,2]
[387842692,1758917433287,-151.0,0.00019328,2]
[387842693,1758917433297,-500.0,0.00019328,2]
[387842694,1758917433307,-500.0,0.00019328,2]
[387842695,1758917433317,-500.0,0.00019328,2]
[387842696,1758917433328,-500.0,0.00019328,2]
[387842697,1758917433338,-500.0,0.00019328,2]
[387842698,1758917433348,-500.0,0.00019328,2]
[387842699,1758917433358,-202.01684604,0.00019328,2]
[387842700,1758917433368,-500.0,0.00019328,2]
[387842701,1758917433378,-500.0,0.00019328,2]
[387842702,1758917433388,-500.0,0.00019328,2]
[387842703,1758917433399,-610.14440801,0.00019328,2]
[387842704,1758917433410,-500.0,0.00019328,2]
[387842705,1758917433420,-644.24614799,0.00019328,2]
[387842706,1758917433430,-200.0,0.00019328,2]
[387842707,1758917433440,-500.0,0.00019328,2]
[387842708,1758917433451,-200.0,0.00019328,2]
[387842709,1758917433461,-200.0,0.00019328,2]
[387842710,1758917433470,-200.0,0.00019328,2]
[387842711,1758917433480,-200.0,0.00019328,2]
[387842712,1758917433490,-200.0,0.00019328,2]
[387842713,1758917433500,-200.0,0.00019328,2]
[387842714,1758917433509,-200.0,0.00019328,2]
[387842715,1758917433519,-200.0,0.00019328,2]
[387842716,1758917433529,-200.0,0.00019328,2]
[387842717,1758917433540,-267.74509477,0.00019328,2]
[387842718,1758917433834,-500.0,0.00019328,2]
[387842719,1758917433860,-168.69,0.00019328,2]
[387842720,1758917433870,-583.73209464,0.00019338,2]
[387842721,1758917433879,-347.0,0.00019359,2]
[387842722,1758917433889,-1441.55976484,0.00019399,2]
[387842723,1758917433899,-150.75,0.000194,2]
[387842724,1758917433908,-268.63,0.00019406,2]
[387842725,1758917433918,-1500.0,0.00019533,2]
[387842726,1758917433930,-490.80426671,0.00019534,2]
[387842727,1758917433943,-347.0,0.00019537,2]
[387842728,1758917433952,-151.63,0.00019587,2]
[387842729,1758917433962,-347.0,0.00019592,2]
[387842730,1758917433971,-347.0,0.00019612,2]
[387842731,1758917433983,-347.0,0.00019634,2]
[387842732,1758917433993,-150.0,0.00019639,2]
[387842733,1758917434003,-500.0,0.00019644,2]
[387842734,1758917434013,-254.15383206,0.00019666,2]
[387842735,1758917434023,-232.6574,0.00019698,2]
[387842736,1758917434033,-500.0,0.00019699,2]
[387842737,1758917434042,-215.18077413,0.00019699,2]
[387842738,1758917434052,-10399.4133946,0.000197,2]
[387842739,1758917434062,-192.79,0.0001972,2]
[387842740,1758917434071,-347.0,0.00019796,2]
[387842741,1758917434081,-1000.0,0.000198,2]
[387842742,1758917434090,-1011.64722,0.000198,2]
[387842743,1758917434100,-4179.0,0.000198,2]
[387842744,1758917434110,-15713.784,0.000198,2]
[387842745,1758917434120,-728.0,0.000198,2]
[387842746,1758917434130,-347.0,0.00019838,2]
[387842747,1758917434140,-162.6,0.00019838,2]
[387842748,1758917434151,-285.6005304,0.00019849,2]
[387842749,1758917434162,-180.46971889,0.00019849,2]
[387842750,1758917434172,-1015.20374601,0.00019853,2]
[387842751,1758917434183,-218.62687202,0.00019854,2]
[387842752,1758917434197,-1015.20374601,0.00019856,2]
[387842753,1758917434207,-150.66523994,0.00019859,2]
[387842754,1758917434217,-180.46971889,0.00019869,2]
[387842755,1758917434227,-285.6005304,0.00019871,2]
[387842756,1758917434237,-285.6005304,0.00019875,2]
[387842757,1758917434247,-810.89159135,0.00019875,2]
[387842758,1758917434257,-202.45828781,0.00019876,2]
[387842759,1758917434267,-150.66523994,0.0001988,2]
[387842760,1758917434277,-150.66523994,0.00019887,2]
[387842761,1758917434287,-218.62687202,0.00019889,2]
[387842762,1758917434297,-150.66523994,0.00019893,2]
[387842763,1758917434308,-218.62687202,0.00019894,2]
[387842764,1758917434318,-4617.02644585,0.00019899,2]
[387842765,1758917434328,-4617.02644585,0.000199,2]
[387842766,1758917434338,-4617.02644585,0.000199,2]
[387842767,1758917434349,-4617.02644585,0.000199,2]
[387842768,1758917434359,-161.66455568,0.000199,2]
[387842769,1758917434368,-5000.0,0.000199,2]
[387842770,1758917434378,-389.79645984,0.000199,2]
[387842771,1758917434388,-170.0102736,0.000199,2]
[387842772,1758917434398,-419.4509668,0.000199,2]
[387842773,1758917434408,-1011.64722,0.000199,2]
[387842774,1758917434418,-153.22908119,0.000199,2]
[387842775,1758917434427,-407.45350338,0.000199,2]
[387842776,1758917434436,-947.32640177,0.000199,2]
[387842777,1758917434445,-14552.1129485,0.000199,2]
[387842778,1758917434455,-191.1590152,0.000199,2]
[387842779,1758917434464,-180.46971889,0.00019906,2]
[387842780,1758917434473,-150.66523994,0.00019919,2]
[387842781,1758917434483,-180.46971889,0.0001992,2]
[387842782,1758917434492,-285.6005304,0.00019922,2]
[387842783,1758917434502,-218.62687202,0.00019925,2]
[387842784,1758917434512,-285.6005304,0.00019927,2]
[387842785,1758917434522,-180.46971889,0.00019928,2]
[387842786,1758917434531,-180.46971889,0.00019928,2]
[387842787,1758917434541,-218.62687202,0.00019933,2]
[387842788,1758917434551,-1847.637,0.00019936,2]
[387842789,1758917434561,-258.367,0.00019938,2]
[387842790,1758917434571,-1015.20374601,0.00019939,2]
[387842791,1758917434580,-1015.20374601,0.00019939,2]
[387842792,1758917434590,-150.66523994,0.00019958,2]
[387842793,1758917434600,-150.66523994,0.00019961,2]
[387842794,1758917434610,-180.46971889,0.00019962,2]
[387842795,1758917434620,-1015.20374601,0.00019962,2]
[387842796,1758917434630,-1015.20374601,0.00019968,2]
[387842797,1758917434640,-300.0,0.0001997,2]
[387842798,1758917434654,-511.18239305,0.00019973,2]
[387842799,1758917434664,-470.81289355,0.00019973,2]
[387842800,1758917434674,-505.56838693,0.00019973,2]
[387842801,1758917434684,-500.0,0.00019973,2]
[387842802,1758917434694,-500.0,0.00019973,2]
[387842803,1758917434704,-500.0,0.00019973,2]
[387842804,1758917434714,-508.45536329,0.00019973,2]
[387842805,1758917434724,-500.0,0.00019973,2]
[387842806,1758917434734,-500.0,0.00019973,2]
[387842807,1758917434744,-193.99744232,0.00019973,2]
[387842808,1758917434754,-500.0,0.00019973,2]
[387842809,1758917434764,-195.22841381,0.00019973,2]
[387842810,1758917434774,-500.0,0.00019973,2]
[387842811,1758917434784,-482.69253859,0.00019973,2]
[387842812,1758917434794,-500.0,0.00019973,2]
[387842813,1758917434804,-333.77481173,0.00019973,2]
[387842814,1758917434814,-500.0,0.00019973,2]
[387842815,1758917434824,-500.0,0.00019973,2]
[387842816,1758917434834,-500.0,0.00019973,2]
[387842817,1758917434845,-500.0,0.00019973,2]
[387842818,1758917434855,-500.0,0.00019973,2]
[387842819,1758917434865,-250.0,0.0001998,2]
[387842820,1758917434874,-285.6005304,0.0001998,2]
[387842821,1758917434885,-218.62687202,0.00019982,2]
[387842822,1758917434895,-285.6005304,0.00019982,2]
[387842823,1758917434906,-1015.20374601,0.00019985,2]
[387842824,1758917434917,-151.75,0.00019989,2]
[387842825,1758917434927,-151.75,0.0001999,2]
[387842826,1758917434940,-172.80196056,0.0001999,2]
[387842827,1758917434950,-218.62687202,0.00019994,2]
[387842828,1758917434960,-192.79,0.00019994,2]
[387842829,1758917434970,-151.0,0.00019996,2]
[387842830,1758917434982,-151.0,0.00019997,2]
[387842831,1758917434991,-150.0,0.00019998,2]
[387842832,1758917435001,-5000.0,0.00019998,2]
[387842833,1758917435013,-252.438584,0.00019998,2]
[387842834,1758917435023,-29261.9028648,0.00019998,2]
[387842835,1758917435032,-178.9458882,0.00019998,2]
[387842836,1758917435042,-300.0,0.00019999,2]
[387842837,1758917435052,-300.0,0.00019999,2]
[387842838,1758917435062,-300.0,0.00019999,2]
[387842839,1758917435071,-666.0,0.00019999,2]
[387842840,1758917435082,-5483.6189307,0.00019999,2]
[387842841,1758917435091,-167.0,0.00019999,2]
[387842842,1758917435101,-200.0,0.00019999,2]
[387842843,1758917435111,-151.15287282,0.00019999,2]
[387842844,1758917435124,-150.0,0.00019999,2]
[387842845,1758917435134,-5000.0,0.00019999,2]
[387842846,1758917435144,-150.0,0.00019999,2]
[387842847,1758917435155,-150.0,0.00019999,2]
[387842848,1758917435165,-150.0,0.00019999,2]
[387842849,1758917435175,-2072.0,0.00019999,2]
[387842850,1758917435184,-150.0,0.00019999,2]
[387842851,1758917435194,-200.0,0.00019999,2]
[387842852,1758917435204,-150.0,0.00019999,2]
[387842853,1758917435214,-150.0,0.00019999,2]
[387842854,1758917435224,-500.0,0.00019999,2]
[387842855,1758917435233,-500.0,0.00019999,2]
[387842856,1758917435243,-500.0,0.00019999,2]
[387842857,1758917435253,-150.0,0.00019999,2]
[387842858,1758917435262,-500.0,0.00019999,2]
[387842859,1758917435272,-500.0,0.00019999,2]
[387842860,1758917435282,-150.0,0.00019999,2]
[387842861,1758917435292,-500.0,0.00019999,2]
[387842862,1758917435301,-150.0,0.00019999,2]
[387842863,1758917435311,-951.0,0.00019999,2]
[387842864,1758917435321,-418.0,0.00019999,2]
[387842865,1758917435330,-150.0,0.00019999,2]
[387842866,1758917435340,-150.0,0.00019999,2]
[387842867,1758917435349,-150.39379499,0.00019999,2]
[387842868,1758917435359,-4337.7772127,0.0002,2]
[387842869,1758917435369,-112204.01018903,0.0002,2]
[387842870,1758917435384,-1182.29582589,0.0002,2]
[387842871,1758917435396,-508.39401783,0.0002,2]
[387842872,1758917435435,-1247.44419495,0.0002,2]
[387842873,1758917435445,-500.0,0.0002,2]
[387842874,1758917435454,-481.06113956,0.0002,2]
[387842875,1758917435466,-18.92886044,0.0002,2]
[387842876,1758917435475,-500.0,0.0002,2]
[387842877,1758917435485,-500.0,0.0002,2]
[387842878,1758917435494,-1641.51222985,0.0002,2]
[387842879,1758917435506,-1321.76945658,0.0002,2]
[387842880,1758917435518,-1807.01762166,0.0002,2]
[387842881,1758917435612,-1028.92855401,0.0002,2]
[387842882,1758917435624,-436.60011272,0.0002,2]
[387842883,1758917435636,-339.66691684,0.0002,2]
[387842884,1758917435749,-1486.65987906,0.0002,2]
[387842885,1758917435761,-355.04700077,0.0002,2]
[387842886,1758917435773,-993.82977677,0.0002,2]
[387842887,1758917435785,-1780.8271681,0.0002,2]
[387842981,1758917440769,-528.12633655,0.0002,2]
[387842982,1758917440873,-94129.53296939,0.0002,2]
[387842983,1758917440913,-777.83677586,0.0002,2]
[387842984,1758917442003,-1641.5,0.0002,2]
[387842985,1758917442016,-2731.5995337,0.0002,2]
[387842986,1758917442027,-311.9626791,0.0002,2]
[387843065,1758917444932,-385.55875511,0.00019998,2]
[387843066,1758917444946,-952.04447236,0.00019998,2]
[387843067,1758917445240,-1669.17477423,0.00019998,2]
[387843068,1758917445252,-7493.47107937,0.00019998,2]
[387843069,1758917445442,-6460.09856723,0.00019998,2]
[387843070,1758917445452,-736267.62300536,0.0002,2]
[387843071,1758917445506,-1338.89025357,0.0002,2]
[387843072,1758917445547,-2203.0,0.0002,2]
[387843073,1758917445558,-461.412428,0.0002,2]
[387843090,1758917447866,-1030.39263357,0.0002,2]
[387843091,1758917447877,-47134.70810325,0.0002,2]
[387843092,1758917447888,-10138.17352937,0.0002,2]
[387843093,1758917447919,-3883.69076482,0.0002,2]
[387843094,1758917447931,-4876.49773118,0.0002,2]
[387843095,1758917447945,-1189.34141486,0.0002,2]
[387843096,1758917448005,-905.7299986,0.0002,2]
[387843097,1758917448018,-2530.22929059,0.0002,2]
[387843098,1758917448031,-5558.92238823,0.0002,2]
[387843099,1758917448202,-9913.39490066,0.0002,2]
[387843100,1758917448214,-64974.37418155,0.0002,2]
[387843101,1758917448226,-19398.62320757,0.0002,2]